bitfinex-derivatives/quotes_SOLF0:USTF0_20250712
["timestamp","ask_amount","ask_price","bid_price","bid_amount"]
[1752311280436,3.51,162.4,162.38,9.6656]
[1752311280625,3.51,162.4,162.36,2.33471044]
[1752311280834,3.51,162.38,162.35,3.51]
[1752311281030,3.51,162.38,162.36,3.51]
[1752311281236,3.51,162.38,162.36,9.6664]
[1752311282235,3.51,162.38,162.37,6.1562]
[1752311282636,3.51,162.38,162.37,9.6662]
[1752311284132,177.72,162.39,162.38,9.6658]
[1752311284333,181.23,162.39,162.38,9.6658]
[1752311284839,3.51,162.39,162.38,9.6658]
[1752311289631,3.51,162.39,162.38,3.51]
[1752311289836,3.51,162.39,162.37,9.6661]
[1752311290137,3.51,162.39,162.35,3.51]
[1752311290330,9.6656,162.39,162.35,9.6666]
[1752311290531,3.51,162.38,162.35,9.6666]
[1752311290835,3.51,162.38,162.36,3.51]
[1752311291137,3.51,162.38,162.36,9.6665]
[1752311294642,3.51,162.38,162.36,6.1565]
[1752311294856,3.51,162.38,162.37,3.45]
[1752311296747,3.51,162.38,162.36,9.6065]
[1752311297644,3.51,162.37,162.35,9.6068]
[1752311297944,3.51,162.37,162.35,3.45]
[1752311299148,3.51,162.37,162.35,9.6069]
[1752311300649,3.51,162.36,162.35,3.45]
[1752311300850,3.51,162.36,162.3,2.33471044]
[1752311301150,3.51,162.36,162.31,3.45]
[1752311301548,3.51,162.34,162.33,3.45]
[1752311302950,3.51,162.34,162.33,9.6077]
[1752311306451,3.51,162.34,162.32,9.608]
[1752311306646,0.04703107,162.35,162.31,3.45]
[1752311306647,3.55703107,162.35,162.31,3.45]
[1752311306851,3.51,162.34,162.31,3.45]
[1752311307048,3.51,162.39,162.34,3.45]
[1752311307246,3.51,162.4,162.36,3.45]
[1752311307447,3.51,162.4,162.38,6.1556]
[1752311307752,3.51,162.41,162.37,2.33668053]
[1752311307946,3.51,162.41,162.39,3.45]
[1752311308447,3.51,162.41,162.39,9.6053]
[1752311308646,3.51,162.42,162.39,9.6053]
[1752311308852,3.51,162.42,162.4,9.6048]
[1752311310251,3.51,162.42,162.41,6.1547]
[1752311310452,177.7,162.44,162.38,0.04693419]
[1752311310653,3.51,162.43,162.39,2.33668053]
[1752311311153,3.51,162.43,162.41,6.1544]
[1752311311356,0.03973218,162.43,162.39,2.33668053]
[1752311311548,3.51,162.42,162.39,2.33668053]
[1752311311747,3.51,162.42,162.41,6.1547]
[1752311311943,3.51,162.42,162.41,9.6047]
[1752311314655,3.51,162.42,162.4,9.6049]
[1752311315856,3.51,162.42,162.41,6.1547]
[1752311316053,3.51,162.42,162.41,9.6047]
[1752311317759,3.51,162.42,162.4,6.1548]
[1752311318856,3.51,162.42,162.39,6.1553]
[1752311319054,3.51,162.42,162.38,0.04693419]
[1752311319259,3.51,162.42,162.38,3.49693419]
[1752311320162,3.51,162.42,162.39,3.45]
[1752311320861,3.51,162.42,162.38,2.38133721]
[1752311321053,3.51,162.42,162.39,3.45]
[1752311321453,3.51,162.42,162.38,2.38133721]
[1752311321759,3.51,162.42,162.38,0.04693419]
[1752311322059,3.51,162.39,162.32,3.45]
[1752311322254,3.51,162.37,162.32,3.45]
[1752311323259,3.51,162.35,162.33,3.45]
[1752311325160,3.51,162.35,162.31,3.33]
[1752311326155,0.04705939,162.36,162.31,3.33]
[1752311326357,3.32,162.34,162.31,3.33]
[1752311326759,3.32,162.34,162.33,9.4877]
[1752311327461,3.32,162.34,162.33,6.1577]
[1752311328661,3.32,162.34,162.33,9.4877]
[1752311333460,3.36705939,162.36,162.35,9.4869]
[1752311333767,3.32,162.36,162.35,9.4869]
[1752311334562,0.04474446,162.37,162.36,9.4866]
[1752311334762,3.36474446,162.37,162.36,9.4866]
[1752311334958,3.32,162.37,162.36,9.4866]
[1752311336267,3.32,162.37,162.36,6.1566]
[1752311336466,3.32,162.37,162.35,6.1568]
[1752311337665,3.32,162.37,162.34,6.1572]
[1752311339963,0.04637947,162.38,162.33,6.1575]
[1752311340165,3.32,162.37,162.33,6.1575]
[1752311340369,3.32,162.37,162.32,3.33]
[1752311340566,6.1568,162.36,162.33,6.1577]
[1752311340868,3.32,162.35,162.33,6.1577]
[1752311343069,3.32,162.35,162.32,9.4879]
[1752311343476,3.32,162.35,162.33,6.1576]
[1752311343973,3.32,162.35,162.33,9.4876]
[1752311344669,3.32,162.35,162.32,6.1579]
[1752311345173,6.157,162.35,162.32,6.1579]
[1752311345373,3.32,162.34,162.32,6.1579]
[1752311345770,3.32,162.34,162.31,9.4883]
[1752311346067,3.32,162.34,162.31,6.1583]
[1752311346363,3.32,162.34,162.32,3.33]
[1752311347379,3.32,162.34,162.31,9.4883]
[1752311347567,3.32,162.34,162.31,9.52912181]
[1752311347975,3.32,162.34,162.32,9.488]
[1752311349667,3.32,162.34,162.32,6.158]
[1752311349970,3.32,162.34,162.31,9.52912181]
[1752311350972,3.32,162.34,162.32,3.33]
[1752311351567,3.32,162.34,162.31,9.52912181]
[1752311351771,3.32,162.33,162.31,0.04082181]
[1752311352164,9.4778,162.33,162.31,0.04082181]
[1752311352372,3.32,162.32,162.31,0.04082181]
[1752311353066,9.4781,162.32,162.31,0.04082181]
[1752311353470,3.32,162.33,162.25,5.66440302]
[1752311353670,6.1587,162.31,162.28,6.1596]
[1752311353866,3.32,162.3,162.28,9.4896]
[1752311354275,2.33440302,162.34,162.29,9.4889]
[1752311354478,3.32,162.33,162.29,9.4889]
[1752311354678,9.51902413,162.33,162.29,9.4889]
[1752311354882,3.37,162.32,162.29,9.4889]
[1752311355079,3.37,162.32,162.3,3.44]
[1752311355276,3.37,162.32,162.3,9.5987]
[1752311356580,3.37,162.32,162.29,6.1591]
[1752311356780,3.37,162.32,162.29,9.5991]
[1752311357676,3.37,162.32,162.3,9.5988]
[1752311357873,3.37,162.32,162.3,3.44]
[1752311358073,3.37,162.32,162.31,6.1584]
[1752311358270,3.37,162.32,162.28,3.44]
[1752311359179,3.37,162.32,162.3,6.1586]
[1752311359480,3.37,162.32,162.3,3.44]
[1752311359682,3.37,162.32,162.3,9.5986]
[1752311359980,3.37,162.32,162.3,3.44]
[1752311360976,3.37,162.32,162.2,532.04]
[1752311360977,0.04695105,162.33,162.32,3.44]
[1752311361381,3.37,162.36,162.35,6.1567]
[1752311361573,3.37,162.36,162.35,9.5967]
[1752311362782,3.37,162.36,162.35,3.44]
[1752311362981,3.37,162.35,162.34,3.44]
[1752311363481,3.37,162.35,162.34,9.5973]
[1752311364886,3.37,162.35,162.34,6.1573]
[1752311365181,3.37,162.35,162.3,2.33625114]
[1752311365680,0.04416919,162.34,162.33,9.5975]
[1752311365884,3.41416919,162.34,162.33,9.5975]
[1752311367180,0.04416919,162.34,162.33,9.5975]
[1752311367389,3.37,162.36,162.35,9.5969]
[1752311368083,3.37,162.37,162.36,6.1563]
[1752311368587,3.37,162.37,162.36,9.5963]
[1752311368788,6.1548,162.41,162.37,6.1559]
[1752311368988,3.37,162.38,162.37,9.5959]
[1752311369586,3.37,162.38,162.36,6.1564]
[1752311370888,3.37,162.38,162.36,9.5964]
[1752311373492,3.37,162.38,162.37,9.5962]
[1752311375386,3.37,162.41,162.39,6.1553]
[1752311375584,3.37,162.41,162.39,9.5953]
[1752311376891,3.37,162.41,162.38,6.19970036]
[1752311377086,3.37,162.41,162.38,0.04390036]
[1752311377398,6.1552,162.4,162.36,6.1563]
[1752311377694,3.37,162.39,162.36,3.44]
[1752311378094,3.37,162.39,162.37,6.1561]
[1752311378892,3.37,162.39,162.36,9.5965]
[1752311379092,3.37,162.39,162.34,2.33625114]
[1752311379093,3.37,162.38,162.34,5.77625114]
[1752311379393,3.37,162.38,162.35,3.44]
[1752311379693,3.4091663,162.38,162.35,9.5966]
[1752311380094,3.4091663,162.38,162.36,3.44]
[1752311380296,3.4091663,162.38,162.36,9.5963]
[1752311380495,3.4091663,162.38,162.36,6.1563]
[1752311382602,3.4091663,162.38,162.35,9.5967]
[1752311384198,3.37,162.37,162.35,3.44]
[1752311384499,3.37,162.37,162.34,9.5971]
[1752311384700,3.38,162.36,162.34,6.1571]
[1752311385497,3.38,162.36,162.34,9.7771]
[1752311387805,180.94,162.37,162.35,3.62]
[1752311388199,3.38,162.36,162.35,6.1569]
[1752311388701,3.38,162.36,162.35,9.7769]
[1752311389208,180.94,162.37,162.36,9.7765]
[1752311389703,3.38,162.36,162.34,3.62]
[1752311390206,3.38,162.36,162.35,6.1568]
[1752311390903,3.38,162.36,162.34,6.1571]
[1752311391501,3.38,162.36,162.34,9.7771]
[1752311393104,3.38,162.36,162.34,6.1571]
[1752311393299,3.38,162.36,162.34,9.7771]
[1752311393504,3.38,162.36,162.34,3.62]
[1752311394008,177.56,162.37,162.31,2.33593974]
[1752311394009,3.38,162.35,162.33,6.1574]
[1752311394209,3.38,162.35,162.31,2.33593974]
[1752311394611,3.38,162.35,162.33,6.1574]
[1752311394811,3.38,162.35,162.34,3.62]
[1752311399217,6.157,162.35,162.32,9.7779]
[1752311399419,3.38,162.34,162.32,9.7779]
[1752311399923,3.38,162.34,162.33,3.62]
[1752311401114,3.38,162.34,162.33,9.7777]
[1752311401512,3.38,162.34,162.33,3.62]
[1752311402618,3.38,162.34,162.33,9.7777]
[1752311403221,3.38,162.34,162.33,3.62]
[1752311405617,3.38,162.34,162.33,9.7777]
[1752311406721,3.42443327,162.35,162.34,9.7773]
[1752311407223,112.12455336,162.46,162.35,3.62]
[1752311407224,3.38,162.42,162.35,3.62]
[1752311407422,3.38,162.42,162.36,2.33593974]
[1752311407623,6.1549,162.41,162.38,3.62]
[1752311407822,3.38,162.4,162.38,3.62]
[1752311408324,3.38,162.4,162.37,9.7759]
[1752311408522,3.38,162.4,162.38,3.62]
[1752311408721,3.38,162.4,162.39,3.62]
[1752311409118,3.38,162.4,162.38,3.62]
[1752311409321,3.38,162.4,162.38,9.7756]
[1752311410121,3.38,162.4,162.39,3.62]
[1752311410319,3.38,162.42,162.41,3.62]
[1752311411319,3.38,162.42,162.41,9.7747]
[1752311411515,3.38,162.43,162.42,3.62]
[1752311412424,3.38,162.43,162.42,9.774]
[1752311413726,3.38,162.43,162.42,3.62]
[1752311416523,3.38,162.43,162.41,8.53301112]
[1752311416524,3.38,162.43,162.41,2.37841112]
[1752311416730,3.38,162.43,162.41,0.04354212]
[1752311416925,3.53,162.43,162.42,3.42]
[1752311419724,3.53,162.43,162.42,9.5743]
[1752311419928,0.04431012,162.44,162.42,9.5743]
[1752311420130,3.57431012,162.44,162.43,3.42]
[1752311420328,0.04431012,162.44,162.43,9.5739]
[1752311421630,3.57431012,162.44,162.43,9.5739]
[1752311423033,0.04431012,162.44,162.43,9.5739]
[1752311423539,3.53,162.47,162.46,9.5728]
[1752311423832,177.44,162.51,162.45,2.3333872]
[1752311423833,3.53,162.5,162.45,2.3333872]
[1752311424031,3.53,162.5,162.47,3.42]
[1752311424636,3.53,162.5,162.47,3.46607779]
[1752311425229,177.44,162.51,162.47,3.46607779]
[1752311425230,6.1516,162.49,162.47,3.46607779]
[1752311425533,3.53,162.48,162.47,3.46607779]
[1752311426034,3.53,162.48,162.47,0.04607779]
[1752311428037,9.682,162.48,162.47,0.04607779]
[1752311428241,3.53,162.48,162.44,3.42]
[1752311428834,3.53,162.47,162.45,3.42]
[1752311429234,3.53,162.47,162.44,3.42]
[1752311429439,6.1525,162.47,162.44,3.46260883]
[1752311429632,3.53,162.46,162.44,3.46260883]
[1752311433140,9.6828,162.46,162.44,3.46260883]
[1752311433335,3.53,162.45,162.44,3.46260883]
[1752311433742,3.53,162.45,162.44,0.04260883]
[1752311435239,9.6831,162.45,162.4,2.33279472]
[1752311435542,3.53,162.44,162.41,3.42]
[1752311435742,3.53,162.44,162.41,9.5744]
[1752311436542,6.1535,162.44,162.4,9.5749]
[1752311436843,3.53,162.43,162.4,9.5749]
[1752311437343,6.1535,162.44,162.32,14.64879472]
[1752311437344,3.53,162.42,162.32,14.64879472]
[1752311437543,3.53,162.42,162.37,3.42]
[1752311437938,0.0429976,162.41,162.39,6.1552]
[1752311438244,3.53,162.4,162.39,9.5752]
[1752311439139,3.53,162.4,162.38,6.1557]
[1752311439339,5.86279472,162.4,162.34,3.42]
[1752311439544,3.53,162.39,162.34,3.42]
[1752311439744,3.53,162.39,162.36,9.5765]
[1752311439941,0.04553225,162.38,162.35,3.42]
[1752311440140,6.1564,162.37,162.33,6.1575]
[1752311440345,3.53,162.36,162.33,6.1575]
[1752311440544,3.53,162.36,162.33,9.5775]
[1752311441150,3.53,162.36,162.34,3.42]
[1752311444448,6.1564,162.37,162.34,3.42]
[1752311444651,3.53,162.35,162.34,3.42]
[1752311445752,3.43,162.37,162.32,2.33279472]
[1752311446052,3.43,162.37,162.35,3.29]
[1752311446544,3.47506254,162.36,162.35,9.4466]
[1752311451255,3.47506254,162.36,162.35,3.29]
[1752311452255,3.47506254,162.36,162.35,9.4469]
[1752311452456,0.04506254,162.36,162.35,9.4469]
[1752311455255,0.04506254,162.36,162.34,2.33279472]
[1752311455256,3.43,162.44,162.38,9.4458]
[1752311455648,3.43,162.41,162.39,3.29]
[1752311455853,3.43,162.41,162.39,9.4454]
[1752311456859,3.43,162.41,162.39,3.29]
[1752311459055,3.43,162.44,162.39,3.29]
[1752311460162,3.43,162.44,162.4,9.445]
[1752311460667,3.43,162.44,162.4,3.29]
[1752311460865,3.43,162.42,162.4,3.29]
[1752311461461,3.43,162.42,162.41,3.29]
[1752311461858,6.1547,162.41,162.38,0.04404429]
[1752311462060,3.43,162.4,162.38,0.04404429]
[1752311463778,3.43,162.42,162.4,3.29]
[1752311464869,3.43,162.41,162.4,6.155]
[1752311465473,3.43,162.41,162.4,9.445]
[1752311465871,3.43,162.44,162.42,3.29]
[1752311466472,183.5928,162.46,162.42,9.4442]
[1752311466777,3.43,162.43,162.42,6.1542]
[1752311466973,183.5928,162.46,162.43,6.1538]
[1752311467176,3.43,162.45,162.44,3.29]
[1752311467378,3.43,162.45,162.42,3.33033043]
[1752311467582,3.43,162.44,162.42,3.33033043]
[1752311468176,3.43,162.45,162.42,6.19453043]
[1752311468376,3.43,162.45,162.43,3.29]
[1752311472680,3.43,162.45,162.42,3.33033043]
[1752311472982,3.43,162.44,162.42,0.04033043]
[1752311473576,9.5835,162.44,162.42,0.04033043]
[1752311473778,3.43,162.43,162.42,0.04033043]
[1752311473976,3.43,162.43,162.42,3.33033043]
[1752311475082,3.43,162.43,162.42,9.48463043]
[1752311475679,3.43,162.43,162.42,3.33033043]
[1752311477581,3.43,162.43,162.42,0.04033043]
[1752311477786,5.76279472,162.43,162.38,3.31]
[1752311477979,3.47,162.42,162.39,3.31]
[1752311478584,3.47,162.42,162.39,9.4653]
[1752311478975,3.51443758,162.42,162.39,9.4653]
[1752311479883,3.51443758,162.42,162.4,3.31]
[1752311480786,3.51443758,162.42,162.41,9.4647]
[1752311481084,3.47,162.42,162.41,3.31]
[1752311482086,3.47,162.42,162.41,9.4647]
[1752311482882,3.51202758,162.43,162.42,6.1543]
[1752311483183,3.51202758,162.43,162.42,9.4643]
[1752311484382,3.51202758,162.43,162.42,3.31]
[1752311485182,3.51202758,162.43,162.42,9.4643]
[1752311489089,0.04202758,162.43,162.42,9.4643]
[1752311493597,3.51202758,162.43,162.42,9.4643]
[1752311493790,3.51202758,162.43,162.42,3.31]
[1752311493990,3.51202758,162.43,162.41,6.1546]
[1752311494492,3.51202758,162.43,162.41,9.4646]
[1752311495897,3.51202758,162.43,162.42,9.4643]
[1752311497300,0.04202758,162.43,162.42,9.4643]
[1752311497495,3.47,162.46,162.45,6.1531]
[1752311497693,3.47,162.46,162.45,3.31]
[1752311497895,3.47,162.46,162.43,2.33354294]
[1752311498094,3.47,162.46,162.44,3.31]
[1752311498495,3.47,162.46,162.43,2.33354294]
[1752311498688,3.47,162.46,162.41,2.3783337]
[1752311498991,3.47,162.46,162.42,3.31]
[1752311499600,3.47,162.46,162.43,9.4637]
[1752311501796,3.47,162.46,162.44,9.4635]
[1752311502197,3.47,162.46,162.43,6.1538]
[1752311502498,3.47,162.46,162.43,9.4638]
[1752311503398,3.47,162.46,162.44,9.4634]
[1752311512004,3.47,162.46,162.44,3.31]
[1752311517416,177.36,162.49,162.41,2.3783337]
[1752311517610,3.3,162.47,162.45,3.52]
[1752311517805,532.04,162.52,162.45,5.85354294]
[1752311518109,3.3,162.48,162.47,3.52]
[1752311518312,3.3,162.48,162.47,3.56376403]
[1752311519405,3.3,162.48,162.47,0.04376403]
[1752311521809,3.3,162.48,162.47,3.56376403]
[1752311523810,3.3,162.48,162.47,0.04376403]
[1752311526514,9.452,162.48,162.47,0.04376403]
[1752311527612,3.3,162.48,162.47,0.04376403]
[1752311534520,3.3,162.5,162.48,3.52]
[1752311534712,180.93,162.51,162.5,3.34]
[1752311536017,3.59,162.51,162.5,3.34]
[1752311536621,3.59,162.51,162.49,1.49309646]
[1752311536824,3.59,162.51,162.49,3.34]
[1752311539320,3.59,162.51,162.5,3.34]
[1752311541420,3.59,162.51,162.5,9.4912]
[1752311542224,3.59,162.51,162.5,3.34]
[1752311544220,3.59,162.51,162.47,2.37578075]
[1752311544420,3.59,162.51,162.47,3.38376403]
[1752311544926,6.1515,162.5,162.47,3.38376403]
[1752311545122,3.59,162.49,162.47,3.38376403]
[1752311547630,3.59,162.49,162.48,3.34]
[1752311547830,3.59,162.53,162.48,3.34]
[1752311548029,187.0003,162.53,162.49,6.1514]
[1752311548229,3.59,162.52,162.5,3.34]
[1752311548426,177.26,162.53,162.51,3.34]
[1752311549030,3.59,162.52,162.51,3.34]
[1752311549625,180.85,162.53,162.51,5.67201672]
[1752311549828,180.85,162.53,162.52,6.1505]
[1752311549829,3.59,162.53,162.52,6.1505]
[1752311550128,3.59,162.53,162.52,9.4905]
[1752311552134,3.59,162.55,162.53,3.34]
[1752311552934,3.59,162.55,162.52,9.4905]
[1752311553823,3.59,162.54,162.5,0.04138974]
[1752311554029,3.59,162.54,162.5,3.38138974]
[1752311554335,6.1499,162.54,162.51,3.34]
[1752311554534,3.59,162.53,162.51,3.34]
[1752311554733,3.59,162.53,162.5,9.53238974]
[1752311557238,3.59,162.52,162.5,3.38138974]
[1752311558437,3.59,162.52,162.51,3.34]
[1752311558936,3.59,162.52,162.5,0.04138974]
[1752311559232,711.33201672,162.56,162.5,0.04138974]
[1752311559233,3.59,162.55,162.5,0.04138974]
[1752311560033,3.59,162.52,162.5,0.04138974]
[1752311561940,3.59,162.52,162.5,3.38138974]
[1752311562428,3.59,162.52,162.51,3.34]
[1752311565137,3.59,162.52,162.5,6.19258974]
[1752311565337,3.59,162.52,162.5,0.04138974]
[1752311565740,9.5509,162.51,162.5,0.04138974]
[1752311566042,3.4,162.51,162.46,3.58]
[1752311566243,3.4,162.48,162.46,3.58]
[1752311567841,5.73201672,162.48,162.45,0.03936043]
[1752311568042,3.4,162.47,162.45,0.03936043]
[1752311568442,9.5528,162.46,162.45,0.03936043]
[1752311570041,3.4,162.44,162.42,3.58]
[1752311570245,3.4,162.44,162.4,3.58]
[1752311570445,3.4,162.44,162.41,6.1544]
[1752311570746,3.4,162.45,162.42,3.58]
[1752311570941,3.4,162.45,162.43,3.58]
[1752311571748,3.4,162.44,162.41,3.58]
[1752311572346,3.44582095,162.44,162.42,3.58]
[1752311573237,0.04582095,162.44,162.41,3.58]
[1752311574045,0.04582095,162.44,162.4,2.33201672]
[1752311574046,0.04582095,162.44,162.43,3.58]
[1752311575548,0.04582095,162.44,162.43,9.7339]
[1752311582555,3.44582095,162.44,162.43,9.7339]
[1752311584054,0.04582095,162.44,162.43,9.7339]
[1752311590154,3.4,162.49,162.47,6.1522]
[1752311590354,3.4,162.49,162.45,2.33201672]
[1752311590559,3.4,162.49,162.45,3.58]
[1752311590857,3.4,162.47,162.45,9.7328]
[1752311591258,6.1524,162.47,162.44,9.7334]
[1752311591457,3.4,162.46,162.44,9.7334]
[1752311591658,3.4,162.46,162.44,6.1534]
[1752311594163,3.4,162.46,162.43,9.7337]
[1752311594360,3.4,162.46,162.43,6.1537]
[1752311595060,3.4,162.46,162.44,6.1535]
[1752311595260,3.4,162.46,162.44,9.4435]
[1752311597166,3.4,162.46,162.45,3.29]
[1752311597362,3.4,162.46,162.45,9.4431]
[1752311597566,3.42166877,162.47,162.45,3.29]
[1752311598064,3.42166877,162.47,162.46,9.4428]
[1752311600470,3.42166877,162.47,162.46,11.77481672]
[1752311600664,0.04166877,162.47,162.46,11.77481672]
[1752311601265,6.1507,162.52,162.49,6.1516]
[1752311601266,3.38,162.51,162.49,6.1516]
[1752311601564,3.38,162.51,162.42,5.16540729]
[1752311601871,708.9,162.55,162.5,9.441]
[1752311602166,6.15,162.54,162.5,9.441]
[1752311602364,3.38,162.53,162.5,9.441]
[1752311602573,3.38,162.53,162.51,0.04711107]
[1752311604076,9.5302,162.53,162.51,0.04711107]
[1752311604476,3.38,162.52,162.51,0.04711107]
[1752311604671,9.5305,162.52,162.51,0.04711107]
[1752311613577,9.5305,162.52,162.45,5.62201672]
[1752311613578,2.33201672,162.52,162.45,5.62201672]
[1752311613779,3.38,162.49,162.45,3.29]
[1752311613983,3.38,162.48,162.45,3.29]
[1752311614976,3.42492397,162.48,162.45,3.29]
[1752311615182,3.42492397,162.48,162.44,6.1533]
[1752311615183,3.38,162.47,162.43,9.4437]
[1752311615882,9.5327,162.47,162.43,3.29]
[1752311616084,3.38,162.46,162.43,3.29]
[1752311616782,3.38,162.45,162.42,6.1541]
[1752311616984,3.38,162.45,162.42,9.4441]
[1752311617182,3.38,162.45,162.42,3.29]
[1752311617382,3.38,162.44,162.41,3.29]
[1752311617578,3.38,162.44,162.42,3.29]
[1752311619277,3.38,162.44,162.41,6.1545]
[1752311619480,3.38,162.44,162.41,9.4445]
[1752311619783,3.38,162.44,162.41,6.1545]
[1752311619982,3.38,162.44,162.42,3.29]
[1752311620284,3.38,162.44,162.42,9.4442]
[1752311623485,3.38,162.44,162.43,3.29]
[1752311623886,3.38,162.44,162.42,9.4442]
[1752311625384,3.38,162.44,162.42,6.1542]
[1752311625588,3.38,162.44,162.43,3.54]
[1752311626185,3.38,162.44,162.4,3.54]
[1752311626888,3.38,162.44,162.39,3.54]
[1752311627481,3.38,162.44,162.38,2.33201672]
[1752311627882,6.1539,162.43,162.41,3.54]
[1752311628088,3.28,162.42,162.41,3.54]
[1752311629687,3.28,162.42,162.41,9.6947]
[1752311629888,3.28,162.42,162.41,3.54]
[1752311631184,3.28,162.42,162.41,9.6947]
[1752311631389,3.28,162.44,162.41,3.54]
[1752311632088,3.28,162.44,162.43,3.54]
[1752311633791,3.28,162.44,162.43,9.6939]
[1752311634187,0.04185006,162.45,162.43,3.54]
[1752311634391,0.04185006,162.45,162.43,9.6937]
[1752311634392,3.32185006,162.45,162.43,9.6937]
[1752311634589,3.32185006,162.45,162.44,3.54]
[1752311636789,3.32185006,162.45,162.44,9.6935]
[1752311636991,3.32185006,162.45,162.44,3.54]
[1752311639887,3.32185006,162.45,162.43,9.6937]
[1752311640293,3.32185006,162.45,162.42,9.6941]
[1752311640695,3.32185006,162.45,162.39,3.54]
[1752311640891,3.28,162.42,162.37,3.54]
[1752311641096,3.28,162.41,162.37,3.54]
[1752311641391,3.28,162.41,162.37,9.6959]
[1752311641693,3.31894441,162.41,162.37,9.6959]
[1752311642794,9.47374441,162.41,162.37,9.6959]
[1752311642991,6.19374441,162.41,162.37,9.6959]
[1752311643187,3.28,162.4,162.37,9.6959]
[1752311645395,3.28,162.39,162.37,3.54]
[1752311645597,3.28,162.39,162.36,9.6964]
[1752311647788,9.4355,162.39,162.36,3.54]
[1752311648084,3.28,162.38,162.36,3.54]
[1752311649294,3.28,162.38,162.36,9.6965]
[1752311650691,3.28,162.38,162.36,3.54]
[1752311650892,3.28,162.38,162.32,2.33201672]
[1752311651091,3.28,162.37,162.34,9.697]
[1752311651493,3.32697297,162.37,162.34,9.697]
[1752311653897,3.32697297,162.37,162.35,9.6969]
[1752311660003,3.32697297,162.37,162.35,3.54]
[1752311660600,3.32697297,162.37,162.35,9.6968]
[1752311662202,3.32697297,162.37,162.36,6.1565]
[1752311662400,3.47,162.39,162.37,3.32]
[1752311663006,3.47,162.39,162.38,9.4758]
[1752311664502,3.47,162.39,162.38,3.32]
[1752311665303,3.47,162.39,162.38,9.4758]
[1752311666197,3.47,162.39,162.38,3.32]
[1752311667102,3.47,162.39,162.38,9.4758]
[1752311673306,3.47,162.39,162.38,3.32]
[1752311674404,3.47,162.39,162.38,9.4758]
[1752311677407,3.47,162.39,162.38,3.32]
[1752311678310,3.47,162.39,162.38,9.4758]
[1752311680009,3.47,162.39,162.38,10.97039024]
[1752311680309,3.47,162.41,162.39,6.1554]
[1752311680513,3.47,162.41,162.4,3.32]
[1752311680908,3.47,162.41,162.39,6.1554]
[1752311681109,3.47,162.41,162.39,9.4754]
[1752311682608,3.47,162.41,162.39,6.1554]
[1752311683213,4.96459024,162.41,162.38,9.4756]
[1752311683412,3.47,162.4,162.38,9.4756]
[1752311688920,3.47,162.4,162.38,6.1556]
[1752311689109,3.47,162.4,162.38,9.5456]
[1752311689311,3.45,162.39,162.38,9.5456]